bitfinex/quotes_SOLUSD_20220113
["timestamp","ask_amount","ask_price","bid_price","bid_amount"]
[1642102279307,32.0722,150.02,149.85,25.7891]
[1642102279506,132.2922,150.02,149.85,25.7891]
[1642102279910,132.2922,150.02,149.85,2.666]
[1642102280107,132.2922,150.02,149.86,14.12861799]
[1642102280308,3.23493154,150.01,149.86,14.12861799]
[1642102280507,10.0062,149.95,149.86,14.12861799]
[1642102280709,10.688,149.94,149.86,14.12861799]
[1642102281409,2.668,150.0,149.86,24.13461799]
[1642102281609,10.688,150.0,149.87,2.666]
[1642102281809,16.688,150.0,149.87,2.666]
[1642102282011,16.688,150.0,149.87,9.176]
[1642102282509,16.938,150.0,149.87,9.176]
[1642102283010,17.198,150.0,149.87,9.176]
[1642102283210,27.2002,150.0,149.91,15.54118785]
[1642102283812,27.2002,150.0,149.87,2.926]
[1642102284014,33.4902,150.0,149.87,0.26]
[1642102284216,66.8,149.99,149.87,0.26]
[1642102284411,10.006,149.95,149.87,0.26]
[1642102284615,2.668,149.94,149.85,0.26]
[1642102284819,2.668,149.94,149.85,15.36259378]
[1642102285013,9.178,149.94,149.85,15.62259378]
[1642102285216,9.178,149.94,149.86,10.006]
[1642102285614,9.178,149.94,149.86,10.266]
[1642102286014,8.668,149.94,149.86,10.266]
[1642102286214,6.0,149.94,149.86,10.266]
[1642102286615,14.02,149.96,149.86,16.266]
[1642102286815,14.02,149.96,149.86,16.516]
[1642102287518,14.27,149.96,149.86,16.516]
[1642102287917,14.27,149.96,149.91,10.0028]
[1642102288116,14.27,149.96,149.92,17.74191409]
[1642102288519,14.27,149.96,149.92,18.00191409]
[1642102288520,6.0,149.96,149.92,18.00191409]
[1642102288917,16.686,149.99,149.92,28.00391409]
[1642102290121,6.0,149.99,149.92,28.00391409]
[1642102290318,2.666,150.01,149.92,28.00391409]
[1642102290519,8.666,150.01,149.92,28.25391409]
[1642102291219,8.916,150.01,149.92,28.25391409]
[1642102295328,8.666,150.01,149.92,28.25391409]
[1642102295726,2.666,150.01,149.92,28.25391409]
[1642102295928,2.666,150.03,149.92,28.25391409]
[1642102296128,2.666,150.04,149.92,34.25391409]
[1642102296327,6.0,150.03,149.92,34.25391409]
[1642102296628,2.666,150.02,149.92,27.74391409]
[1642102296828,8.02,150.01,149.92,27.74391409]
[1642102297028,12.6683,150.0,149.88,2.666]
[1642102297228,8.02,149.99,149.87,49.0303]
[1642102297528,2.666,149.98,149.87,49.0303]
[1642102297728,10.686,149.98,149.87,49.0303]
[1642102297932,2.61444472,149.97,149.84,18.23402223]
[1642102298129,10.688,149.96,149.84,15.56802223]
[1642102298553,17.198,149.96,149.84,15.56802223]
[1642102299457,17.198,149.96,149.84,26.08572223]
[1642102299657,1.62467845,149.94,149.84,26.08572223]
[1642102299856,2.668,149.93,149.84,28.75372223]
[1642102300057,8.918,149.93,149.84,25.83572223]
[1642102300256,8.918,149.93,149.84,25.57572223]
[1642102300458,27.2046,149.93,149.84,10.0077]
[1642102301655,28.66100641,149.93,149.84,10.0077]
[1642102301858,28.66100641,149.93,149.83,10.0087]
[1642102302057,28.66100641,149.93,149.81,2.668]
[1642102302458,66.8,149.92,149.81,2.668]
[1642102302659,10.0133,149.86,149.81,2.668]
[1642102302858,2.669,149.85,149.76,1.91186547]
[1642102303062,16.78432516,149.84,149.76,1.91186547]
[1642102303260,2.67,149.83,149.76,1.91186547]
[1642102303459,8.02,149.82,149.76,1.91186547]
[1642102303660,10.0171,149.79,149.76,1.91186547]
[1642102303860,2.67,149.78,149.72,1.91186547]
[1642102304064,9.18,149.78,149.72,1.91186547]
[1642102304462,9.18,149.78,149.72,2.17186547]
[1642102304961,17.2,149.78,149.72,1.91186547]
[1642102305162,10.0177,149.77,149.72,1.91186547]
[1642102305362,2.67,149.76,149.71,13.67273846]
[1642102305564,2.67,149.76,149.69,10.0179]
[1642102305565,9.18,149.76,149.69,10.0179]
[1642102305765,14.845,149.76,149.68,11.93036547]
[1642102305962,14.845,149.76,149.68,12.19036547]
[1642102306162,24.8631,149.76,149.68,1.91186547]
[1642102306363,32.8831,149.76,149.68,1.91186547]
[1642102307562,99.6831,149.76,149.68,1.91186547]
[1642102307763,32.8831,149.76,149.68,14.63125674]
[1642102307963,32.6231,149.76,149.68,14.63125674]
[1642102308665,32.6231,149.76,149.65,0.00186547]
[1642102308866,10.0271,149.66,149.59,2.67]
[1642102309066,10.693,149.65,149.58,5.73329758]
[1642102309464,17.203,149.65,149.58,5.73329758]
[1642102310068,14.27,149.65,149.57,13.79908084]
[1642102310268,8.02,149.7,149.58,2.673]
[1642102310476,8.02,149.7,149.58,8.673]
[1642102311067,8.02,149.7,149.58,19.2075]
[1642102311669,2.673,149.69,149.58,13.2075]
[1642102312068,10.0236,149.68,149.58,12.9575]
[1642102312269,2.673,149.67,149.58,12.9575]
[1642102312472,6.51,149.67,149.58,12.9575]
[1642102312672,2.673,149.66,149.58,12.9575]
[1642102312872,2.673,149.66,149.58,10.2845]
[1642102313071,8.923,149.66,149.58,10.2845]
[1642102313274,6.25,149.66,149.59,2.673]
[1642102313475,0.25,149.66,149.62,10.0231]
[1642102313675,0.25,149.66,149.63,19.1934197]
[1642102314077,9.183,149.69,149.63,19.1934197]
[1642102314678,10.0233,149.68,149.63,19.1934197]
[1642102314880,2.672,149.67,149.63,19.1934197]
[1642102315079,8.922,149.67,149.63,19.1934197]
[1642102315281,2.672,149.67,149.63,19.1934197]
[1642102315479,6.0,149.67,149.63,19.7034197]
[1642102315679,6.0,149.67,149.63,19.4534197]
[1642102315880,6.0,149.67,149.63,29.4761197]
[1642102316081,14.02,149.7,149.63,29.4761197]
[1642102316481,14.02,149.7,149.63,29.7261197]
[1642102316679,14.02,149.7,149.63,29.4761197]
[1642102317404,14.02,149.7,149.63,10.0227]
[1642102317604,2.672,149.69,149.63,10.0227]
[1642102317805,12.6948,149.69,149.63,10.0227]
[1642102318006,19.2048,149.69,149.61,10.0233]
[1642102318206,16.5328,149.69,149.61,10.0233]
[1642102318406,16.5328,149.69,149.62,15.94252293]
[1642102318613,2.672,149.68,149.61,10.0233]
[1642102318805,2.672,149.68,149.61,10.2833]
[1642102319007,9.182,149.68,149.61,10.2833]
[1642102319308,19.2054,149.68,149.61,10.0233]
[1642102319507,19.2054,149.68,149.61,0.26]
[1642102319707,19.2054,149.68,149.56,14.62733286]
[1642102319913,19.2054,149.68,149.57,2.673]
[1642102320109,19.2054,149.68,149.57,2.923]
[1642102320308,19.2054,149.68,149.57,3.183]
[1642102321308,19.2054,149.68,149.61,15.33225772]
[1642102321509,19.2054,149.68,149.61,15.59225772]
[1642102322409,19.2054,149.68,149.61,15.33225772]
[1642102323210,19.2054,149.68,149.61,25.35575772]
[1642102323812,8.922,149.68,149.61,25.61575772]
[1642102324712,8.922,149.68,149.61,25.86575772]
[1642102325111,6.25,149.68,149.61,25.86575772]
[1642102325513,2.672,149.7,149.61,25.86575772]
[1642102325812,8.922,149.7,149.61,25.86575772]
[1642102326814,6.25,149.7,149.61,25.86575772]
[1642102327014,10.532,149.7,149.61,25.86575772]
[1642102327214,16.532,149.7,149.61,25.86575772]
[1642102327614,16.272,149.7,149.61,25.86575772]
[1642102328015,19.204,149.7,149.61,25.61575772]
[1642102328214,19.204,149.7,149.61,15.33225772]
[1642102328414,27.224,149.7,149.58,2.672]
[1642102328614,27.224,149.7,149.55,24.4429]
[1642102328615,32.998,149.7,149.56,2.673]
[1642102328816,81.9256,149.7,149.56,2.673]
[1642102329517,81.9256,149.7,149.57,13.72528524]
[1642102329916,81.9256,149.7,149.57,13.98528524]
[1642102330621,81.9256,149.7,149.57,24.26168524]
[1642102331425,81.9256,149.7,149.57,10.2764]
[1642102331619,66.8,149.69,149.58,7.62970806]
[1642102331820,10.0285,149.64,149.58,7.62970806]
[1642102332019,2.673,149.63,149.58,7.62970806]
[1642102332419,9.183,149.63,149.58,7.62970806]
[1642102333220,9.183,149.63,149.54,13.83699849]
[1642102333221,10.0283,149.61,149.54,13.83699849]
[1642102333419,2.674,149.6,149.54,13.83699849]
[1642102333820,8.924,149.6,149.54,13.83699849]
[1642102334219,8.924,149.6,149.55,3.82080957]
[1642102334420,6.25,149.6,149.55,3.82080957]
[1642102334621,16.2789,149.6,149.55,3.82080957]
[1642102334821,2.674,149.59,149.55,3.82080957]
[1642102335021,6.0,149.59,149.55,3.82080957]
[1642102335621,16.0289,149.6,149.55,3.82080957]
[1642102336024,16.0289,149.6,149.55,4.08080957]
[1642102336226,2.674,149.63,149.55,4.08080957]
[1642102336637,8.674,149.63,149.55,0.26]
[1642102336825,2.924,149.63,149.55,0.26]
[1642102337024,8.924,149.63,149.55,14.58413785]
[1642102337424,8.924,149.63,149.55,14.84413785]
[1642102337724,18.9506,149.63,149.57,10.0266]
[1642102338023,18.9506,149.63,149.57,10.2866]
[1642102338224,18.9506,149.63,149.56,3.82080957]
[1642102338424,18.9506,149.63,149.55,3.80889849]
[1642102338923,19.2106,149.63,149.55,3.80889849]
[1642102339423,19.2106,149.63,149.55,3.82150564]
[1642102340727,19.2106,149.63,149.55,27.34294475]
[1642102341826,19.2106,149.63,149.56,3.82150564]
[1642102343926,19.2106,149.63,149.55,7.63040413]
[1642102344534,18.9506,149.63,149.55,25.32871904]
[1642102344728,18.9506,149.63,149.55,35.35661904]
[1642102344928,18.9506,149.63,149.55,31.80772055]
[1642102345328,9.62,149.64,149.56,2.673]
[1642102345528,2.673,149.67,149.56,3.183]
[1642102345729,24.1704,149.68,149.56,9.183]
[1642102345928,24.1704,149.68,149.56,3.183]
[1642102346128,24.1704,149.68,149.56,16.81340413]
[1642102346928,24.4204,149.68,149.56,16.81340413]
[1642102347329,24.4204,149.68,149.6,25.03785436]
[1642102347630,30.4204,149.68,149.6,25.29785436]
[1642102348029,24.4204,149.68,149.6,25.29785436]
[1642102348329,24.4204,149.68,149.61,3.82150564]
[1642102348528,24.4204,149.68,149.63,10.0225]
[1642102348728,0.25,149.68,149.63,28.136119]
[1642102349129,8.923,149.69,149.63,28.136119]
[1642102351429,8.923,149.69,149.63,10.0225]
[1642102353531,9.62,149.68,149.6,3.80889849]
[1642102353733,2.673,149.67,149.6,3.80889849]
[1642102353931,9.62,149.66,149.6,3.80889849]
[1642102354131,2.673,149.65,149.6,3.80889849]
[1642102354331,2.673,149.65,149.61,3.80889849]
[1642102354532,9.183,149.65,149.61,3.80889849]
[1642102355732,9.183,149.65,149.58,3.80889849]
[1642102355933,19.2083,149.65,149.58,13.83449849]
[1642102356133,8.923,149.65,149.58,14.09449849]
[1642102356639,2.923,149.65,149.58,13.83449849]
[1642102356833,2.923,149.65,149.58,10.0256]
[1642102357034,8.923,149.65,149.58,10.0256]
[1642102357236,2.923,149.65,149.58,10.0256]
[1642102357435,9.183,149.65,149.58,10.0256]
[1642102357635,9.183,149.65,149.6,10.0244]
[1642102357636,8.923,149.65,149.6,10.0244]
[1642102360145,8.923,149.65,149.59,10.0249]
[1642102360343,19.2082,149.65,149.59,10.0249]
[1642102360543,19.2082,149.65,149.57,3.80889849]
[1642102360944,28.8282,149.65,149.57,3.80889849]
[1642102361943,9.57427926,149.64,149.57,3.80889849]
[1642102362143,10.0272,149.62,149.55,3.80889849]
[1642102362447,10.2872,149.62,149.55,3.80889849]
[1642102362645,16.5372,149.62,149.55,3.80889849]
[1642102362844,16.5372,149.62,149.53,7.63924858]
[1642102363044,10.0299,149.58,149.53,7.63924858]
[1642102363444,10.2799,149.58,149.53,7.63924858]
[1642102364147,2.674,149.57,149.52,7.63924858]
[1642102364649,8.924,149.57,149.52,7.63924858]
[1642102365247,10.0317,149.56,149.51,3.80889849]
[1642102365646,16.2817,149.56,149.51,3.80889849]
[1642102366072,16.2817,149.56,149.5,7.63924858]
[1642102366073,10.2817,149.56,149.5,7.63924858]
[1642102366273,10.2817,149.56,149.5,7.13924858]
[1642102366474,16.2817,149.56,149.5,7.39924858]
[1642102367976,16.2817,149.56,149.5,7.13924858]
[1642102368178,26.1617,149.56,149.5,7.13924858]
[1642102368378,2.674,149.55,149.5,3.80889849]
[1642102368577,10.0344,149.53,149.5,3.80889849]
[1642102368776,2.674,149.52,149.5,3.80889849]
[1642102368977,6.06439994,149.51,149.5,3.80889849]
[1642102369177,6.06439994,149.51,149.42,59.9335]
[1642102369178,6.06439994,149.51,149.48,3.80889849]
[1642102369379,12.31439994,149.51,149.48,3.80889849]
[1642102369578,12.57439994,149.51,149.48,3.80889849]
[1642102370179,22.60909994,149.51,149.48,3.80889849]
[1642102370381,2.674,149.5,149.47,3.80889849]
[1642102370580,9.184,149.5,149.47,3.80889849]
[1642102370777,3.03219997,149.49,149.47,3.80889849]
[1642102370978,2.674,149.48,149.47,3.80889849]
[1642102371382,19.2215,149.48,149.44,5.73329758]
[1642102371580,19.2215,149.48,149.41,5.73329758]
[1642102372181,86.0215,149.48,149.41,5.73329758]
[1642102372380,19.2215,149.48,149.41,5.73329758]
[1642102373081,19.2215,149.48,149.39,5.73329758]
[1642102373681,18.9615,149.48,149.4,18.66223167]
[1642102374082,8.924,149.48,149.4,18.66223167]
[1642102374482,8.924,149.48,149.4,18.92223167]
[1642102375183,8.924,149.48,149.42,10.0362]
[1642102375583,8.924,149.48,149.42,10.2962]
[1642102376585,2.674,149.48,149.43,14.60722115]
[1642102376787,2.676,149.52,149.45,10.0346]
[1642102376986,2.674,149.56,149.46,2.674]
[1642102377387,2.674,149.56,149.46,4.58399521]
[1642102377588,2.674,149.56,149.46,21.64623103]
[1642102377788,2.674,149.56,149.48,33.4333]
[1642102377994,2.674,149.56,149.48,33.6933]
[1642102378594,2.924,149.56,149.48,33.6933]
[1642102378795,8.924,149.56,149.48,33.6933]
[1642102379297,9.62,149.55,149.44,16.07072114]
[1642102379495,2.674,149.54,149.44,13.39672114]
[1642102379698,9.62,149.53,149.44,5.73329758]
[1642102379896,4.68831419,149.52,149.44,5.73329758]
[1642102380101,11.19831419,149.52,149.44,5.73329758]
[1642102380699,19.2178,149.52,149.44,5.73329758]
[1642102380901,19.2178,149.52,149.42,23.4051]
[1642102381099,19.2178,149.52,149.42,23.6651]
[1642102381300,28.8378,149.52,149.42,23.6651]
[1642102382101,28.8378,149.52,149.44,10.0347]
[1642102382301,18.294,149.52,149.44,10.2947]
[1642102382702,12.294,149.52,149.44,10.2947]
[1642102382902,12.294,149.52,149.44,16.2947]
[1642102383305,9.62,149.52,149.44,10.2947]
[1642102383504,9.62,149.52,149.44,16.2947]
[1642102383703,9.62,149.52,149.44,10.2947]
[1642102383905,9.62,149.52,149.44,10.5447]
[1642102384105,9.62,149.52,149.44,16.5447]
[1642102384306,2.674,149.53,149.44,16.5447]
[1642102384505,25.8178,149.55,149.45,2.674]
[1642102384705,2.674,149.55,149.5,10.0303]
[1642102384920,2.924,149.55,149.5,10.0303]
[1642102385521,2.924,149.55,149.5,10.2903]
[1642102386022,2.924,149.55,149.45,11.1324097]
[1642102386221,9.62,149.54,149.44,5.73329758]
[1642102386423,2.674,149.53,149.44,5.73329758]
[1642102386621,9.62,149.52,149.44,5.73329758]
[1642102386821,10.0385,149.48,149.44,5.73329758]
[1642102387021,2.676,149.47,149.44,5.73329758]
[1642102387221,6.06439994,149.46,149.41,13.39806747]
[1642102387623,12.57439994,149.46,149.41,13.39806747]
[1642102387822,22.61399994,149.46,149.41,13.39806747]
[1642102388223,22.61399994,149.46,149.41,5.73329758]
[1642102388426,22.61399994,149.46,149.38,5.73329758]
[1642102388824,22.35399994,149.46,149.38,5.99329758]
[1642102389625,22.35399994,149.46,149.38,5.73329758]
[1642102390528,2.677,149.45,149.38,5.73329758]
[1642102390730,10.0417,149.42,149.38,5.73329758]
[1642102391130,16.2917,149.42,149.38,5.73329758]
[1642102391930,2.677,149.41,149.38,5.73329758]
[1642102392430,8.927,149.41,149.38,5.73329758]
[1642102392630,8.927,149.41,149.35,13.42036252]
[1642102392831,19.66,149.43,149.35,13.42036252]
[1642102393034,0.25,149.42,149.35,13.68036252]
[1642102393230,0.25,149.42,149.35,13.42036252]
[1642102394132,2.677,149.41,149.35,13.42036252]
[1642102394332,12.297,149.41,149.35,5.75329758]
[1642102394532,18.807,149.41,149.35,5.75329758]
[1642102394733,11.43815936,149.4,149.35,5.75329758]
[1642102394933,12.297,149.39,149.35,5.75329758]
[1642102395333,18.807,149.39,149.35,5.75329758]
[1642102395533,18.807,149.39,149.35,0.02]
[1642102396132,10.0445,149.37,149.35,0.02]
[1642102396334,8.74239994,149.36,149.35,0.02]
[1642102396533,14.99239994,149.36,149.35,0.02]
[1642102396745,14.74239994,149.36,149.35,0.02]
[1642102397333,24.78729994,149.36,149.35,0.02]
[1642102397733,14.74239994,149.36,149.35,0.02]
[1642102397934,12.06439994,149.36,149.35,0.02]
[1642102398540,14.74239994,149.36,149.35,0.02]
[1642102398737,12.32439994,149.36,149.35,0.02]
[1642102398937,12.57439994,149.36,149.35,0.02]
[1642102399640,12.31439994,149.36,149.35,0.02]
[1642102400140,22.35919994,149.36,149.35,0.02]
[1642102401042,22.10919994,149.36,149.35,0.02]
[1642102402541,22.35919994,149.36,149.35,0.02]
[1642102405145,6.06439994,149.36,149.35,0.02]
[1642102405544,9.62,149.39,149.35,0.02]
[1642102406843,9.87,149.39,149.35,0.02]
[1642102409951,15.87,149.39,149.35,0.02]
[1642102410152,9.87,149.39,149.35,0.02]
[1642102411077,15.87,149.39,149.35,0.02]
[1642102412361,2.677,149.4,149.35,0.02]
[1642102412559,2.677,149.46,149.35,0.02]
[1642102412958,2.677,149.46,149.35,1.66999521]
[1642102413161,2.677,149.46,149.35,12.22069521]
[1642102413362,10.037,149.48,149.35,12.22069521]
[1642102414059,10.037,149.48,149.35,0.02]
[1642102414060,9.62,149.47,149.35,0.02]
[1642102414260,10.0423,149.41,149.35,0.02]
[1642102414860,16.2923,149.41,149.35,0.02]
[1642102415261,0.25,149.41,149.35,0.02]
[1642102415460,8.927,149.42,149.35,0.02]
[1642102415661,6.0,149.42,149.35,0.02]
[1642102415861,8.677,149.44,149.35,0.02]
[1642102416163,8.927,149.44,149.35,0.02]
[1642102416367,2.927,149.44,149.35,10.0608]
[1642102416561,2.927,149.44,149.35,10.5708]
[1642102417362,18.9667,149.44,149.35,10.0608]
[1642102417563,18.9667,149.44,149.35,0.02]
[1642102417964,9.62,149.43,149.35,0.02]
[1642102418165,2.677,149.42,149.35,0.02]
[1642102418466,9.187,149.42,149.35,0.02]
[1642102418887,10.0421,149.41,149.35,0.02]
[1642102419087,16.2921,149.41,149.35,0.02]
[1642102420187,2.677,149.4,149.35,10.0609]
[1642102420585,2.677,149.4,149.35,10.3209]
[1642102420788,2.677,149.41,149.35,10.3209]
[1642102421390,8.677,149.41,149.35,10.3209]
[1642102421589,2.927,149.41,149.35,10.3209]
[1642102421995,8.927,149.41,149.35,10.3209]
[1642102422397,2.927,149.41,149.35,10.3209]
[1642102422590,12.9685,149.41,149.35,10.3209]
[1642102422889,18.9685,149.41,149.35,0.28]
[1642102423092,18.9685,149.41,149.35,0.02]
[1642102423894,2.927,149.41,149.35,10.0611]
[1642102424091,2.927,149.41,149.35,26.40308465]
[1642102424793,2.927,149.41,149.35,10.3211]
[1642102426098,9.62,149.43,149.36,2.677]
[1642102426295,2.677,149.45,149.39,10.0378]
[1642102426499,2.927,149.45,149.39,10.2978]
[1642102426697,0.25,149.45,149.39,10.2978]
[1642102427101,2.677,149.48,149.4,15.34398093]
[1642102427300,2.677,149.48,149.44,10.0346]
[1642102427500,2.677,149.48,149.44,10.2946]
[1642102427706,2.676,149.49,149.44,10.2946]
[1642102428804,2.676,149.51,149.44,10.2946]
[1642102430238,8.676,149.51,149.44,10.2946]
[1642102430638,2.926,149.51,149.44,10.2946]
[1642102430835,2.676,149.51,149.44,10.2946]
[1642102431036,2.676,149.51,149.44,10.5446]
[1642102431238,1.80911199,149.52,149.44,10.5446]
[1642102432038,2.674,149.54,149.46,14.03633081]
[1642102432339,2.674,149.54,149.48,10.0321]
[1642102432539,2.674,149.54,149.48,10.2921]
[1642102432743,8.674,149.54,149.48,10.2921]
[1642102432940,2.674,149.54,149.48,10.2921]
[1642102433143,8.674,149.54,149.48,10.2921]
[1642102433540,8.924,149.54,149.48,10.2921]
[1642102433740,2.924,149.54,149.48,10.2921]
[1642102434541,2.674,149.54,149.48,10.2921]
[1642102435343,2.674,149.55,149.48,10.2921]
[1642102435742,10.48311199,149.55,149.48,10.2921]
[1642102435942,4.73311199,149.55,149.48,10.2921]
[1642102436745,2.924,149.55,149.48,10.2921]
[1642102437047,2.674,149.55,149.48,10.2921]
[1642102437245,7.80911199,149.56,149.49,2.674]
[1642102437456,7.80911199,149.56,149.52,10.0289]
[1642102437657,1.80911199,149.57,149.52,10.0289]
[1642102437862,1.80911199,149.57,149.52,10.2889]
[1642102438758,4.48311199,149.59,149.52,10.2889]
[1642102439661,4.48311199,149.59,149.53,66.8]
[1642102439662,0.00311199,149.59,149.53,66.8]
[1642102439859,0.00311199,149.59,149.56,10.0235]
[1642102440059,2.674,149.67,149.57,2.674]
[1642102440259,2.674,149.67,149.56,6.26]
[1642102440759,10.0259,149.65,149.56,0.26]
[1642102440959,2.673,149.64,149.55,33.9253]
[1642102441159,1.673,149.64,149.55,33.9253]
[1642102441758,1.673,149.64,149.58,10.0257]
[1642102441959,12.9491,149.64,149.58,10.2857]
[1642102442460,12.9491,149.64,149.58,10.0257]
[1642102442661,13.2091,149.64,149.54,46.7447]
[1642102442862,1.64999521,149.63,149.53,2.673]
[1642102443061,12.7016,149.62,149.56,10.0274]
[1642102443261,12.7016,149.62,149.53,2.673]
[1642102443462,19.2116,149.62,149.53,2.673]
[1642102443661,1.64999521,149.61,149.53,2.673]
[1642102443861,1.51290019,149.59,149.53,2.673]
[1642102444061,2.674,149.58,149.53,12.7024]
[1642102444861,2.674,149.58,149.53,12.9624]
[1642102445263,2.674,149.62,149.53,10.5394]
[1642102445462,8.674,149.62,149.53,13.2134]
[1642102445663,2.674,149.62,149.53,13.2134]
[1642102445864,8.674,149.62,149.53,13.2134]
[1642102446263,2.674,149.62,149.53,13.2134]
[1642102446864,2.674,149.64,149.53,13.2134]
[1642102447064,8.674,149.64,149.53,13.2134]
[1642102447266,18.7001,149.64,149.53,13.2134]
[1642102447464,18.9501,149.64,149.53,13.2134]
[1642102449267,18.9501,149.64,149.53,10.5394]
[1642102449468,19.2101,149.64,149.53,10.5394]
[1642102450371,18.7101,149.64,149.53,10.5394]
[1642102452478,18.7101,149.64,149.53,13.2134]
[1642102452676,18.4501,149.64,149.53,13.2134]
[1642102452878,18.4501,149.64,149.53,12.9634]
[1642102453076,10.0284,149.61,149.53,12.9634]
[1642102453279,2.674,149.6,149.53,12.9634]
[1642102453479,2.924,149.6,149.53,12.9634]
[1642102454379,12.9528,149.6,149.53,12.7034]
[1642102454580,13.2128,149.6,149.52,10.0297]
[1642102454780,18.9528,149.6,149.52,10.0297]
[1642102454982,8.924,149.6,149.52,10.0297]
[1642102455583,2.924,149.6,149.52,10.0297]
[1642102455879,2.674,149.6,149.52,10.0297]
[1642102456097,2.924,149.6,149.52,10.2897]
[1642102457197,2.674,149.6,149.52,10.2897]
[1642102457499,2.674,149.62,149.52,10.5397]
[1642102458497,2.674,149.62,149.52,16.5397]
[1642102458699,2.674,149.62,149.52,83.3397]
[1642102458898,2.674,149.64,149.53,1.64999521]
[1642102459097,47.2373,149.65,149.53,41.37999521]
[1642102459298,47.2373,149.65,149.58,10.0245]
[1642102459498,53.2373,149.65,149.58,10.2845]
[1642102459699,53.2373,149.65,149.58,23.79074859]
[1642102459898,2.673,149.64,149.58,23.79074859]
[1642102460702,8.673,149.64,149.58,23.79074859]
[1642102460900,53.2373,149.65,149.58,23.79074859]
[1642102461099,47.2373,149.65,149.58,23.79074859]
[1642102461901,2.673,149.66,149.58,24.04074859]
[1642102462099,2.673,149.68,149.58,26.71374859]
[1642102462301,2.673,149.68,149.58,24.04074859]
[1642102462501,8.673,149.68,149.58,24.04074859]
[1642102462704,8.673,149.68,149.58,30.04074859]
[1642102462904,8.673,149.68,149.58,24.04074859]
[1642102463103,10.32299521,149.68,149.58,24.04074859]
[1642102463503,8.673,149.68,149.58,24.04074859]
[1642102464505,8.673,149.68,149.62,10.0214]
[1642102464904,6.25,149.68,149.62,10.2814]
[1642102465105,0.25,149.68,149.62,10.2814]
[1642102465307,6.25,149.68,149.62,10.2814]
[1642102465906,0.25,149.68,149.62,10.2814]
[1642102466105,6.25,149.68,149.62,10.2814]
[1642102466504,0.25,149.68,149.62,10.2814]
[1642102466709,6.25,149.68,149.62,10.2814]
[1642102468408,0.25,149.68,149.62,10.2814]
[1642102468607,8.922,149.69,149.62,10.2814]
[1642102469309,2.672,149.69,149.62,10.2814]
[1642102469511,5.39058516,149.72,149.62,10.5314]
[1642102469512,3.74058995,149.72,149.62,10.5314]
[1642102470010,3.74058995,149.72,149.63,2.672]
[1642102470210,3.74058995,149.72,149.67,10.0159]
[1642102470411,3.74058995,149.72,149.68,2.672]
[1642102470611,3.74058995,149.72,149.67,0.26]
[1642102471211,3.74058995,149.72,149.69,10.0161]
[1642102471611,3.74058995,149.72,149.69,10.2761]
[1642102472816,3.74058995,149.72,149.69,0.26]
[1642102473015,3.74058995,149.72,149.65,33.3862]
[1642102473215,11.64058516,149.72,149.64,2.67]
[1642102473418,2.672,149.71,149.6,33.22]
[1642102473816,1.64999521,149.7,149.6,33.22]
[1642102474017,2.672,149.69,149.6,33.22]
[1642102474418,2.922,149.69,149.61,10.0211]
[1642102474845,2.922,149.69,149.61,10.2811]
[1642102476525,0.25,149.69,149.61,10.2811]
[1642102476726,0.25,149.69,149.61,10.0211]